bitfinex/quotes_BTCUSD_20250224
["timestamp","ask_amount","ask_price","bid_price","bid_amount"]
[1740397249486,4e-05,95951.0,95947.0,0.004]
[1740397249626,4e-05,95951.0,95947.0,0.002]
[1740397250926,4e-05,95951.0,95946.0,0.18694569]
[1740397251055,4e-05,95951.0,95946.0,0.18894569]
[1740397251504,4e-05,95951.0,95946.0,0.18694569]
[1740397251733,4e-05,95951.0,95946.0,0.18494569]
[1740397251932,4e-05,95951.0,95947.0,0.002]
[1740397252111,4e-05,95951.0,95947.0,0.004]
[1740397252290,4e-05,95951.0,95946.0,0.18494569]
[1740397252639,4e-05,95951.0,95946.0,0.18694569]
[1740397252828,4e-05,95951.0,95946.0,0.18894569]
[1740397253055,4e-05,95951.0,95946.0,0.18694569]
[1740397253207,4e-05,95951.0,95947.0,0.156336]
[1740397253527,4e-05,95951.0,95947.0,0.158336]
[1740397254561,4e-05,95951.0,95947.0,0.002]
[1740397254945,4e-05,95951.0,95947.0,0.004]
[1740397258213,4e-05,95951.0,95947.0,0.160335]
[1740397258346,4e-05,95951.0,95947.0,0.004]
[1740397258566,4e-05,95951.0,95947.0,0.160335]
[1740397258780,4e-05,95951.0,95947.0,0.004]
[1740397259750,4e-05,95951.0,95948.0,0.156334]
[1740397260151,4e-05,95951.0,95949.0,0.0491]
[1740397261774,4e-05,95951.0,95949.0,0.0511]
[1740397262809,4e-05,95951.0,95949.0,0.0531]
[1740397264797,4e-05,95951.0,95950.0,0.156331]
[1740397266420,4e-05,95951.0,95950.0,0.160331]
[1740397267237,4e-05,95951.0,95950.0,0.26297669]
[1740397267443,4e-05,95951.0,95950.0,0.34517669]
[1740397268067,4e-05,95951.0,95950.0,0.34317669]
[1740397268268,4e-05,95951.0,95950.0,0.38987669]
[1740397268473,4e-05,95951.0,95950.0,0.39487669]
[1740397269056,4e-05,95951.0,95950.0,0.39287669]
[1740397269788,4e-05,95951.0,95950.0,0.39487669]
[1740397270088,4e-05,95951.0,95950.0,0.40187669]
[1740397278196,4e-05,95951.0,95950.0,0.24554569]
[1740397278408,4e-05,95951.0,95950.0,0.40187669]
[1740397278620,4e-05,95951.0,95950.0,0.24554569]
[1740397279792,4e-05,95951.0,95950.0,0.40187669]
[1740397291176,4e-05,95951.0,95950.0,0.40357489]
[1740397291527,4e-05,95951.0,95950.0,0.38957489]
[1740397291824,4e-05,95951.0,95950.0,0.39657489]
[1740397292039,4e-05,95951.0,95950.0,0.40357489]
[1740397292637,4e-05,95951.0,95950.0,0.42138221]
[1740397294238,4e-05,95951.0,95950.0,0.40357489]
[1740397295381,4e-05,95951.0,95950.0,0.72497489]
[1740397301803,4e-05,95951.0,95950.0,0.71797489]
[1740397301997,4e-05,95951.0,95950.0,0.71097489]
[1740397302347,4e-05,95951.0,95950.0,0.72497489]
[1740397308323,4e-05,95951.0,95950.0,0.56864389]
[1740397309137,4e-05,95951.0,95950.0,0.72497489]
[1740397312260,4e-05,95951.0,95950.0,0.56864389]
[1740397312675,4e-05,95951.0,95950.0,0.72497489]
[1740397313595,4e-05,95951.0,95950.0,0.43974389]
[1740397313804,0.19716711,95953.0,95950.0,0.3370982]
[1740397314004,0.0008495,95957.0,95950.0,0.3370982]
[1740397314208,0.0367,95955.0,95950.0,0.3370982]
[1740397314611,0.0367,95955.0,95950.0,0.3230982]
[1740397315128,0.0367,95955.0,95950.0,0.3300982]
[1740397315328,0.0008495,95957.0,95950.0,0.3300982]
[1740397315528,0.0008495,95957.0,95950.0,0.3310982]
[1740397316124,0.1571705,95957.0,95950.0,0.3310982]
[1740397316274,0.1571705,95957.0,95950.0,0.3240982]
[1740397316474,0.0008495,95957.0,95950.0,0.3250982]
[1740397316737,0.1571695,95957.0,95950.0,0.3250982]
[1740397316874,0.1571695,95957.0,95950.0,0.3240982]
[1740397317073,0.1571695,95957.0,95950.0,0.3230982]
[1740397317274,0.1571695,95957.0,95950.0,0.3250982]
[1740397318098,0.156321,95956.0,95950.0,0.3250982]
[1740397318276,0.0008495,95957.0,95950.0,0.3250982]
[1740397318644,0.1571705,95957.0,95950.0,0.3250982]
[1740397318863,0.156321,95956.0,95950.0,0.3250982]
[1740397319220,0.156323,95955.0,95950.0,0.0036982]
[1740397319964,0.156323,95955.0,95950.0,0.0016982]
[1740397320172,0.0008495,95957.0,95950.0,0.0036982]
[1740397320378,0.156329,95951.0,95950.0,0.0036982]
[1740397320593,0.156329,95951.0,95950.0,0.0016982]
[1740397320802,0.156329,95951.0,95950.0,0.0026982]
[1740397321010,0.156329,95951.0,95950.0,0.0036982]
[1740397321216,0.156329,95951.0,95950.0,0.0026982]
[1740397321634,0.156329,95951.0,95950.0,0.0046982]
[1740397322073,0.156329,95951.0,95950.0,0.0076982]
[1740397324884,0.208432,95955.0,95950.0,0.0076982]
[1740397325086,0.156327,95953.0,95950.0,0.0076982]
[1740397325284,0.156326,95954.0,95950.0,0.0076982]
[1740397325676,0.0008495,95957.0,95950.0,0.0076982]
[1740397325890,0.156324,95955.0,95950.0,0.0076982]
[1740397326061,0.0008495,95957.0,95950.0,0.0076982]
[1740397326352,0.0008495,95957.0,95956.0,0.156321]
[1740397328249,0.0008495,95957.0,95956.0,0.158321]
[1740397330321,0.0008495,95957.0,95956.0,0.26096669]
[1740397330651,0.0008495,95957.0,95956.0,0.33756669]
[1740397335421,0.0008495,95957.0,95956.0,0.38476669]
[1740397345588,0.0008495,95957.0,95956.0,0.38376669]
[1740397345987,0.0008495,95957.0,95956.0,0.70516669]
[1740397346247,0.0008495,95957.0,95956.0,0.70916669]
[1740397346474,0.0008495,95957.0,95956.0,0.70416669]
[1740397346829,0.0008495,95957.0,95956.0,0.71816669]
[1740397351217,0.15626,95994.0,95987.0,0.15627]
[1740397351433,0.156261,95993.0,95983.0,0.20837]
[1740397351604,0.156261,95993.0,95985.0,0.156273]
[1740397352590,0.01632226,95993.0,95985.0,0.156273]
[1740397352885,0.00012932,95994.0,95978.0,0.156285]
[1740397353091,0.15638832,95994.0,95985.0,0.156272]
[1740397354262,0.15012932,95994.0,95978.0,0.10264569]
[1740397354480,0.15012932,95994.0,95987.0,0.15627]
[1740397355237,0.32212005,95994.0,95987.0,0.15627]
[1740397356210,0.32212005,95994.0,95986.0,0.156272]
[1740397356418,0.01586005,95994.0,95985.0,0.156274]
[1740397356622,0.156261,95993.0,95985.0,0.156274]
[1740397357023,0.156264,95992.0,95984.0,0.156275]
[1740397357224,0.01586005,95994.0,95979.0,0.10264569]
[1740397357410,0.14248557,95990.0,95979.0,0.10264569]
[1740397358288,0.14248557,95990.0,95981.0,0.208374]
[1740397358493,0.14248557,95990.0,95979.0,0.10264569]
[1740397358627,0.14248557,95990.0,95980.0,0.156282]
[1740397358827,0.14248557,95990.0,95980.0,0.10264569]
[1740397364219,0.29875157,95990.0,95980.0,0.10264569]
[1740397365181,0.14248557,95990.0,95980.0,0.10264569]
[1740397365453,0.29875157,95990.0,95980.0,0.10264569]
[1740397367452,0.14248557,95990.0,95980.0,0.10264569]
[1740397367654,0.29875157,95990.0,95980.0,0.10264569]
[1740397368464,0.14248557,95990.0,95980.0,0.10264569]
[1740397369458,0.156258,95995.0,95980.0,0.10264569]
[1740397369666,0.14248557,95990.0,95980.0,0.10277501]
[1740397370318,0.14248557,95990.0,95980.0,0.25905701]
[1740397370717,0.14248557,95990.0,95980.0,0.10277501]
[1740397373620,0.14248557,95990.0,95981.0,0.15628]
[1740397374045,0.14248557,95990.0,95982.0,0.156279]
[1740397374537,0.14248557,95990.0,95987.0,0.15627]
[1740397374760,0.208336,95999.0,95980.0,0.10277501]
[1740397374940,0.14248557,95993.0,95981.0,0.10264569]
[1740397375142,0.14248557,95993.0,95985.0,0.156274]
[1740397377034,0.14248557,95993.0,95986.0,0.156272]
[1740397378392,0.15860227,96000.0,95981.0,0.10264569]
[1740397378587,0.156256,95996.0,95982.0,0.208372]
[1740397378789,0.156256,95996.0,95982.0,0.31101769]
[1740397379246,0.156256,95996.0,95984.0,0.208366]
[1740397379474,0.156256,95996.0,95986.0,0.156271]
[1740397379753,0.14248557,95994.0,95982.0,0.31101769]
[1740397379930,0.156254,95997.0,95988.0,0.156269]
[1740397380332,0.156254,95997.0,95989.0,0.156267]
[1740397380716,0.208335,95999.0,95983.0,0.208369]
[1740397380717,0.156252,95999.0,95990.0,0.156264]
[1740397381299,0.156251,95999.0,95990.0,0.156265]
[1740397382388,0.156251,95999.0,95989.0,0.156267]
[1740397382573,0.156254,95998.0,95988.0,0.287757]
[1740397382801,0.156252,95999.0,95988.0,0.287757]
[1740397383157,0.15860227,96000.0,95988.0,0.0794]
[1740397383324,0.156256,95997.0,95988.0,0.235669]
[1740397383820,0.208337,95998.0,95988.0,0.235669]
[1740397384030,0.156255,95997.0,95988.0,0.235669]
[1740397384735,0.1571044,95997.0,95988.0,0.0794]
[1740397384910,0.2091894,95997.0,95988.0,0.0794]
[1740397385068,0.156257,95996.0,95988.0,0.0794]
[1740397386054,0.1571044,95997.0,95988.0,0.0794]
[1740397386234,0.0008494,95997.0,95988.0,0.0794]
[1740397386592,0.1571044,95997.0,95988.0,0.0794]
[1740397386916,0.0008494,95997.0,95988.0,0.0794]
[1740397387136,0.1571044,95997.0,95988.0,0.0794]
[1740397388387,0.0008494,95997.0,95988.0,0.0794]
[1740397388926,0.0008494,95997.0,95988.0,0.235669]
[1740397389344,0.0008494,95997.0,95988.0,0.0794]
[1740397389759,0.0008494,95997.0,95988.0,0.235669]
[1740397389957,0.0008494,95997.0,95988.0,0.0794]
[1740397390162,0.0008494,95997.0,95988.0,0.1255]
[1740397390365,0.0008494,95997.0,95989.0,0.156267]
[1740397391713,0.0008494,95997.0,95988.0,0.1255]
[1740397391920,0.0008494,95997.0,95989.0,0.156267]
[1740397392506,0.0008494,95997.0,95990.0,0.364616]
[1740397392807,0.0008494,95997.0,95989.0,0.156267]
[1740397393330,0.0008494,95997.0,95988.0,0.281768]
[1740397393534,0.0008494,95997.0,95988.0,0.1255]
[1740397394634,0.0008494,95997.0,95988.0,0.281769]
[1740397394840,0.0008494,95997.0,95988.0,0.333859]
[1740397395035,0.0008494,95997.0,95988.0,0.1255]
[1740397395252,0.0008494,95997.0,95989.0,0.156267]
[1740397397812,0.0008494,95997.0,95988.0,0.2834678]
[1740397398034,0.0008494,95997.0,95988.0,0.1271988]
[1740397398238,0.1508494,95997.0,95988.0,0.1271988]
[1740397399207,0.1508494,95997.0,95988.0,0.2834678]
[1740397399635,0.1571044,95997.0,95988.0,0.1271988]
[1740397399994,0.1571044,95997.0,95989.0,0.156267]
[1740397400782,0.15,95995.0,95988.0,0.2834678]
[1740397401148,0.15,95995.0,95990.0,0.156266]
[1740397401572,0.15,95995.0,95988.0,0.1271988]
[1740397401573,0.15,95995.0,95988.0,0.2834668]
[1740397401788,0.15,95995.0,95989.0,0.156267]
[1740397401962,0.10906565,95997.0,95989.0,0.156267]
[1740397402099,0.51027124,96000.0,95988.0,0.1271988]
[1740397402299,0.156257,95996.0,95988.0,0.2834678]
[1740397402960,0.15951818,95996.0,95988.0,0.1271988]
[1740397403196,0.15951818,95996.0,95989.0,0.156267]
[1740397403342,0.15951818,95996.0,95989.0,0.156227]
[1740397403543,0.00326118,95996.0,95988.0,0.1271988]
[1740397403937,0.00326118,95996.0,95990.0,0.156266]
[1740397404825,0.00326118,95995.0,95989.0,0.156267]
[1740397404994,0.00326118,95995.0,95988.0,0.2834678]
[1740397405197,0.00326118,95995.0,95988.0,0.1271988]
[1740397405619,0.00326118,95995.0,95989.0,0.156267]
[1740397406687,0.00326118,95994.0,95989.0,0.156267]
[1740397406889,0.00326118,95994.0,95990.0,0.156265]
[1740397407142,0.00326118,95994.0,95990.0,0.156266]
[1740397407475,0.00326118,95994.0,95989.0,0.156267]
[1740397407677,0.15403757,95998.0,95989.0,0.156267]
[1740397407876,0.00326118,95993.0,95989.0,0.156267]
[1740397409472,0.00326118,95993.0,95988.0,0.1271988]
[1740397409687,0.15403757,95998.0,95991.0,0.156263]
[1740397410322,0.15403757,95998.0,95991.0,0.156264]
[1740397410528,0.15403757,95998.0,95990.0,0.208354]
[1740397410658,0.15403757,95998.0,95992.0,0.156262]
[1740397411000,0.15945167,96000.0,95989.0,0.0016988]
[1740397411247,0.156256,95996.0,95990.0,0.156265]
[1740397411451,0.15945167,96000.0,95989.0,0.0016988]
[1740397411557,0.15945167,96000.0,95989.0,0.1579658]
[1740397411772,0.208337,95998.0,95990.0,0.156265]
[1740397412071,0.15945167,96000.0,95992.0,0.156263]
[1740397412072,0.156256,95997.0,95992.0,0.156263]
[1740397412467,0.156253,95998.0,95990.0,0.208355]
[1740397412735,0.156256,95996.0,95989.0,0.0016988]
[1740397412977,0.156256,95996.0,95989.0,0.1579648]
[1740397413183,0.364591,95998.0,95990.0,0.156264]
[1740397413469,0.156254,95998.0,95989.0,0.0016988]
[1740397413680,0.156255,95997.0,95990.0,0.156265]
[1740397414388,0.156253,95998.0,95990.0,0.156265]
[1740397415012,0.156253,95998.0,95993.0,0.15626]
[1740397415902,0.156253,95998.0,95990.0,0.156266]
[1740397416314,0.156255,95997.0,95990.0,0.156266]
[1740397416864,0.15945167,96000.0,95989.0,0.0016988]
[1740397417065,0.156253,95998.0,95989.0,0.1579658]
[1740397417296,0.156255,95997.0,95989.0,0.1579658]
[1740397418521,0.156256,95996.0,95989.0,0.0016988]
[1740397418722,0.156256,95997.0,95989.0,0.1579648]
[1740397418925,0.156255,95997.0,95989.0,0.0016988]
[1740397419126,0.208338,95998.0,95989.0,0.1579658]
[1740397419303,0.156255,95997.0,95989.0,0.0016988]
[1740397419512,0.208335,95999.0,95989.0,0.0016988]
[1740397419712,0.156257,95996.0,95989.0,0.0016988]
[1740397420322,0.156256,95996.0,95989.0,0.0016988]
[1740397420590,0.15945167,96000.0,95989.0,0.0016988]
[1740397420790,0.208335,95999.0,95989.0,0.0016988]
[1740397420944,0.156259,95995.0,95989.0,0.0016988]
[1740397421119,0.15626,95994.0,95989.0,0.0016988]
[1740397421329,0.156266,95990.0,95989.0,0.0016988]
[1740397421529,0.2135626,95990.0,95989.0,0.0016988]
[1740397421790,0.18719312,95990.0,95989.0,0.0016988]
[1740397422211,0.156296,95972.0,95970.0,0.0832]
[1740397422944,0.156297,95972.0,95970.0,0.0832]
[1740397423159,0.156297,95971.0,95970.0,0.0832]
[1740397423741,0.156297,95971.0,95970.0,0.0862]
[1740397424147,0.156297,95971.0,95970.0,0.0832]
[1740397424342,0.156297,95971.0,95970.0,0.0892]
[1740397424757,0.156297,95971.0,95970.0,0.0862]
[1740397424921,0.156297,95971.0,95970.0,0.0902]
[1740397425622,0.16477607,95971.0,95970.0,0.0902]
[1740397426225,0.16477607,95971.0,95970.0,0.007]
[1740397426854,0.16477607,95971.0,95970.0,0.003]
[1740397427069,0.00847907,95971.0,95956.0,0.0016988]
[1740397427266,0.156317,95959.0,95956.0,0.0016988]
[1740397427469,0.15632,95957.0,95956.0,0.0016988]
[1740397428493,0.17141788,95957.0,95956.0,0.0016988]
[1740397429165,0.17141788,95957.0,95956.0,0.0086988]
[1740397429166,0.17989695,95957.0,95956.0,0.0086988]
[1740397429419,0.17989695,95957.0,95956.0,0.0016988]
[1740397429842,0.17989695,95957.0,95956.0,0.0056988]
[1740397430144,0.17989695,95957.0,95956.0,0.0016988]
[1740397430370,0.18089695,95957.0,95956.0,0.0096988]
[1740397430975,0.17989695,95957.0,95956.0,0.0026988]
[1740397431118,0.17989695,95957.0,95956.0,0.0036988]
[1740397438534,0.18446636,95957.0,95956.0,0.0036988]
[1740397441727,0.02814636,95957.0,95956.0,0.0036988]
[1740397441928,0.18446636,95957.0,95956.0,0.0036988]
[1740397442136,0.02814636,95957.0,95956.0,0.0036988]
[1740397442550,0.02814636,95957.0,95956.0,0.0516988]
[1740397446914,0.02814636,95957.0,95956.0,0.0036988]
[1740397447111,0.33446636,95957.0,95956.0,0.0036988]
[1740397450994,0.33446636,95957.0,95950.0,0.0016982]
[1740397450995,0.15,95956.0,95950.0,0.0016982]
[1740397451189,0.156329,95951.0,95950.0,0.00181964]
[1740397451730,0.306329,95951.0,95950.0,0.00181964]
[1740397452423,0.306329,95951.0,95950.0,0.00281964]
[1740397452619,0.306329,95951.0,95950.0,0.00181964]
[1740397453238,0.30959018,95951.0,95950.0,0.00281964]
[1740397453845,0.30959018,95951.0,95950.0,0.00481964]
[1740397454055,0.30959018,95951.0,95950.0,0.00281964]
[1740397454501,0.30959018,95951.0,95950.0,0.00481964]
[1740397457600,0.30959018,95951.0,95950.0,0.00281964]
[1740397457921,0.31059018,95951.0,95950.0,0.00181964]
[1740397458125,0.31259018,95951.0,95950.0,0.00181964]
[1740397462479,0.31781041,95951.0,95950.0,0.00181964]
[1740397463019,0.32689041,95951.0,95950.0,0.00181964]
[1740397464155,0.32689041,95951.0,95950.0,0.00177964]
[1740397466148,0.05213,95938.0,95937.0,0.0468]
[1740397466364,0.15635,95938.0,95937.0,0.0468]
[1740397467371,0.208462,95941.0,95937.0,0.0498]
[1740397467616,0.208462,95941.0,95937.0,0.0528]
[1740397467617,0.15635,95938.0,95937.0,0.0528]
[1740397468383,0.15635,95938.0,95937.0,0.0498]
[1740397468618,0.16483141,95938.0,95937.0,0.0518]
[1740397469483,0.31483141,95938.0,95937.0,0.0488]
[1740397469685,0.31483141,95938.0,95937.0,0.0508]
[1740397469886,0.31483141,95938.0,95937.0,0.0524996]
[1740397470099,0.31483141,95938.0,95937.0,0.0504996]
[1740397470474,0.15848141,95938.0,95937.0,0.0534996]
[1740397470684,0.31483141,95938.0,95937.0,0.0514996]
[1740397470890,0.15848141,95938.0,95937.0,0.0544996]
[1740397471091,0.31483141,95938.0,95937.0,0.0544996]
[1740397474198,0.30961118,95938.0,95937.0,0.0544996]
[1740397474404,0.15326118,95938.0,95937.0,0.0544996]
[1740397474816,0.30961118,95938.0,95937.0,0.0544996]
[1740397475977,0.15326118,95938.0,95937.0,0.0544996]
[1740397476281,0.30961118,95938.0,95937.0,0.0544996]
[1740397476885,0.30961118,95938.0,95937.0,0.0514996]
[1740397477314,0.30961118,95938.0,95937.0,0.0504996]
[1740397477520,0.30961118,95938.0,95937.0,0.0534996]
[1740397477719,0.30961118,95938.0,95937.0,0.0514996]
[1740397477919,0.30961118,95938.0,95937.0,0.0534996]
[1740397478689,0.15326118,95938.0,95937.0,0.0534996]
[1740397479112,0.30961118,95938.0,95937.0,0.0534996]
[1740397479852,0.15326118,95938.0,95937.0,0.0534996]
[1740397480053,0.30961118,95938.0,95937.0,0.0534996]
[1740397490231,0.15326118,95938.0,95937.0,0.0534996]
[1740397490773,0.15326118,95938.0,95937.0,0.0516996]
[1740397495622,0.00326118,95938.0,95937.0,0.1346996]
[1740397500762,0.00326118,95938.0,95937.0,0.23609829]
[1740397515241,0.00411088,95938.0,95937.0,0.23609829]
[1740397520331,0.00411088,95938.0,95937.0,0.10934529]
[1740397521386,0.00411088,95938.0,95937.0,0.19084529]
[1740397521593,0.00411088,95938.0,95937.0,0.23994529]
[1740397521997,0.00411088,95938.0,95937.0,0.39629729]
[1740397522202,0.00411088,95938.0,95937.0,0.23994529]
[1740397522401,0.00411088,95938.0,95937.0,0.39629729]
[1740397523160,0.00411088,95938.0,95937.0,0.23994529]
[1740397523365,0.00411088,95938.0,95937.0,0.39629729]
[1740397524271,0.00411088,95938.0,95937.0,0.39429729]
[1740397524679,0.00411088,95938.0,95937.0,0.39629729]
[1740397524883,0.00411088,95938.0,95937.0,0.39329729]
[1740397525363,0.00411088,95938.0,95937.0,0.23694529]
[1740397525973,0.00411088,95938.0,95937.0,0.23494529]
[1740397526227,0.00511088,95938.0,95937.0,0.24194529]
[1740397526433,0.00511088,95938.0,95937.0,0.24394529]
[1740397526665,0.00411088,95938.0,95937.0,0.23494529]
[1740397526899,0.00411088,95938.0,95937.0,0.24194529]
[1740397527127,0.00411088,95938.0,95937.0,0.24794529]
[1740397527361,0.00411088,95938.0,95937.0,0.24094529]
[1740397527599,0.00411088,95938.0,95937.0,0.24594529]
[1740397528608,0.00877983,95938.0,95937.0,0.24594529]
[1740397541287,0.16512983,95938.0,95937.0,0.1432996]
[1740397541536,0.00877983,95938.0,95937.0,0.0126996]
[1740397541750,0.16512983,95938.0,95937.0,0.0126996]
[1740397542383,0.16512983,95938.0,95937.0,0.0076996]
[1740397542760,0.16512983,95938.0,95937.0,0.0046996]
[1740397543222,0.16512983,95938.0,95937.0,0.0066996]
[1740397544169,0.16512983,95938.0,95937.0,0.0036996]
[1740397544651,0.15635,95938.0,95937.0,0.0056996]
[1740397547804,0.15635,95938.0,95937.0,0.0036996]
[1740397548433,0.15635,95938.0,95937.0,0.0056996]
[1740397549380,0.1571997,95938.0,95937.0,0.0056996]
[1740397551116,0.1571997,95938.0,95937.0,0.0036996]
[1740397551512,0.1571997,95938.0,95937.0,0.0026996]
[1740397551966,0.3071997,95938.0,95937.0,0.0036996]
[1740397560895,0.31046268,95938.0,95937.0,0.0036996]
[1740397566062,0.15411268,95938.0,95937.0,0.0844996]
[1740397566190,0.31046268,95938.0,95937.0,0.0844996]
[1740397566558,0.15411268,95938.0,95937.0,0.0844996]
[1740397567402,0.00411268,95938.0,95937.0,0.18714529]
[1740397568653,0.00411268,95938.0,95937.0,0.18614529]
[1740397569055,0.0008497,95938.0,95937.0,0.18914529]
[1740397569283,0.0008497,95938.0,95937.0,0.18814529]
[1740397569633,0.0008497,95938.0,95937.0,0.19114529]
[1740397572780,0.00411237,95938.0,95937.0,0.19114529]
[1740397579366,0.16046237,95938.0,95937.0,0.0884996]
[1740397579755,0.16046237,95938.0,95937.0,0.0076996]
[1740397583204,0.16568284,95938.0,95937.0,0.0076996]
[1740397583413,0.156366,95929.0,95926.0,0.0758]
[1740397583618,0.156364,95930.0,95926.0,0.0758]
[1740397584252,0.156365,95929.0,95926.0,0.0758]
[1740397584478,0.156367,95928.0,95926.0,0.0758]
[1740397584690,0.156368,95927.0,95926.0,0.0758]
[1740397585136,0.156368,95927.0,95926.0,0.0808]
[1740397585287,0.156368,95927.0,95926.0,0.0758]
[1740397585686,0.16418795,95927.0,95926.0,0.0848]
[1740397586015,0.17267109,95927.0,95926.0,0.0758]
[1740397586221,0.17267109,95927.0,95926.0,0.0788]
[1740397586424,0.17267109,95927.0,95926.0,0.0828]
[1740397586968,0.17267109,95927.0,95926.0,0.007]
[1740397587822,0.16485114,95927.0,95926.0,0.007]
[1740397588268,0.156379,95921.0,95919.0,0.001699]
[1740397589119,0.16939278,95921.0,95919.0,0.001699]
[1740397589326,0.15638,95920.0,95919.0,0.001699]
[1740397589529,0.15964267,95920.0,95919.0,0.01213041]
[1740397589756,0.01108328,95920.0,95919.0,0.01213041]
[1740397589954,0.16746328,95920.0,95919.0,0.01213041]
[1740397591129,0.16746328,95920.0,95919.0,0.00713041]
[1740397591130,0.01108328,95920.0,95919.0,0.00713041]
[1740397591372,0.01108328,95920.0,95919.0,0.00213041]
[1740397591627,0.01208328,95920.0,95919.0,0.01313041]
[1740397597493,0.00882061,95920.0,95919.0,0.01313041]
[1740397597887,0.00426313,95920.0,95919.0,0.01313041]
[1740397598831,0.16064313,95920.0,95919.0,0.01313041]
[1740397599889,0.16064313,95920.0,95919.0,0.00813041]
[1740397600628,0.15964313,95920.0,95919.0,0.00213041]
[1740397600847,0.16745958,95920.0,95919.0,0.00213041]
[1740397601028,0.16745958,95920.0,95919.0,0.00613041]
[1740397601229,0.16745958,95920.0,95919.0,0.00913041]
[1740397601545,0.16745958,95920.0,95919.0,0.00213041]
[1740397601746,0.16745958,95920.0,95919.0,0.00813041]
[1740397604183,0.01107958,95920.0,95919.0,0.00813041]
[1740397604392,0.16745958,95920.0,95919.0,0.00813041]
[1740397605509,0.15964313,95920.0,95919.0,0.00813041]
[1740397610060,0.30964313,95920.0,95919.0,0.00813041]
[1740397610273,0.32053507,95920.0,95919.0,0.00813041]
[1740397610881,0.32053507,95920.0,95919.0,0.00513041]
[1740397611122,0.32053507,95920.0,95919.0,0.00213041]
[1740397611374,0.36308364,95920.0,95919.0,0.00213041]
[1740397612328,0.37090167,95920.0,95919.0,0.00213041]
[1740397612822,0.3283531,95920.0,95919.0,0.00213041]
[1740397614242,0.32650116,95920.0,95919.0,0.00213041]
[1740397614598,0.30964313,95920.0,95919.0,0.00213041]
[1740397615164,0.31746015,95920.0,95919.0,0.00213041]
[1740397622804,0.332001,95920.0,95919.0,0.00213041]
[1740397623005,0.332001,95920.0,95919.0,0.00057041]
[1740397623006,1.27330431,95920.0,95919.0,0.00057041]
[1740397623290,1.26240562,95920.0,95919.0,0.00057041]
[1740397623484,1.10468462,95920.0,95919.0,0.00057041]
[1740397624174,1.12158708,95920.0,95919.0,0.00157041]
[1740397624756,1.12658708,95920.0,95919.0,0.00157041]
[1740397624961,1.08211715,95920.0,95919.0,0.001]
[1740397625178,1.07662944,95920.0,95919.0,0.001]
[1740397625383,1.25004213,95920.0,95919.0,0.001]
[1740397626440,1.19036301,95920.0,95919.0,0.001]
[1740397626759,1.11299301,95920.0,95919.0,0.001]
[1740397626936,1.2039397,95920.0,95919.0,0.001]
[1740397628136,1.5298397,95920.0,95919.0,0.001]
[1740397628458,1.5388797,95920.0,95919.0,0.001]
[1740397629835,1.37304194,95920.0,95919.0,0.001]
[1740397630086,1.52942194,95920.0,95919.0,0.001]
[1740397630686,1.42677625,95920.0,95919.0,0.001]
[1740397631114,1.42677625,95920.0,95919.0,0.0026994]
[1740397631317,0.77654368,95920.0,95919.0,0.0026994]
[1740397632475,0.67389799,95920.0,95919.0,0.0026994]
[1740397633051,0.66485799,95920.0,95919.0,0.0026994]
[1740397633255,0.67389799,95920.0,95919.0,0.0026994]
[1740397634189,0.43903885,95920.0,95919.0,0.0026994]
[1740397634520,0.42999885,95920.0,95919.0,0.0026994]
[1740397634726,0.43903885,95920.0,95919.0,0.0026994]
[1740397635829,0.42999885,95920.0,95919.0,0.0026994]
[1740397636024,0.15638,95920.0,95919.0,0.0821994]
[1740397636450,0.30638,95920.0,95919.0,0.0821994]
[1740397636810,0.15,95920.0,95919.0,0.0821994]
[1740397637011,0.30638,95920.0,95919.0,0.0821994]
[1740397643477,0.3072299,95920.0,95919.0,0.0821994]
[1740397644088,0.3072299,95920.0,95919.0,0.0026994]
[1740397664536,0.3072299,95920.0,95919.0,0.0792994]
[1740397670026,0.1572299,95920.0,95919.0,0.0792994]
[1740397670571,0.3072299,95920.0,95919.0,0.0792994]
[1740397680842,0.31049371,95920.0,95919.0,0.0792994]
[1740397687556,0.15411371,95920.0,95919.0,0.1278994]
[1740397687891,0.00411371,95920.0,95919.0,0.1278994]
[1740397692990,0.0008499,95920.0,95919.0,0.1278994]
[1740397693455,0.0008499,95920.0,95919.0,0.1268994]
[1740397693625,0.0048499,95920.0,95919.0,0.1268994]
[1740397694013,0.0058499,95920.0,95919.0,0.1268994]
[1740397694216,0.0008499,95920.0,95919.0,0.1268994]
[1740397694477,0.0038499,95920.0,95919.0,0.1268994]
[1740397741572,0.01090246,95940.0,95920.0,0.0783]
[1740397741779,0.156359,95934.0,95926.0,0.0783]
[1740397742470,0.20847,95937.0,95926.0,0.0783]
[1740397742656,0.15636,95933.0,95926.0,0.0783]
[1740397742873,0.00464467,95939.0,95926.0,0.0783]
[1740397743081,0.156363,95931.0,95926.0,0.0783]
[1740397743439,0.156361,95932.0,95926.0,0.0783]
[1740397743964,0.001,95933.0,95926.0,0.0783]
[1740397744378,0.15636,95932.0,95926.0,0.0783]
[1740397744782,0.15736,95932.0,95926.0,0.0783]
[1740397744990,0.001,95932.0,95926.0,0.0783]
[1740397746289,0.15736,95932.0,95926.0,0.0783]
[1740397746722,0.15636,95932.0,95926.0,0.0783]
[1740397747627,0.001,95933.0,95926.0,0.0783]
[1740397748084,0.208477,95934.0,95926.0,0.0783]
[1740397748305,0.15736,95932.0,95926.0,0.0783]
[1740397748525,0.001,95932.0,95926.0,0.0783]
[1740397749770,0.156359,95933.0,95926.0,0.0783]
[1740397749968,0.15464467,95939.0,95926.0,0.0783]
[1740397750168,0.156361,95932.0,95926.0,0.0783]
[1740397750629,0.001,95933.0,95926.0,0.0783]
[1740397750753,0.156362,95931.0,95926.0,0.0783]
[1740397751170,0.15636,95933.0,95926.0,0.0783]
[1740397752427,0.15636,95932.0,95926.0,0.0783]
[1740397752624,0.156359,95933.0,95926.0,0.0783]
[1740397752828,0.156361,95932.0,95926.0,0.0783]
[1740397754747,0.156359,95933.0,95926.0,0.0783]
[1740397755193,0.001,95932.0,95926.0,0.0783]
[1740397755547,0.15464467,95939.0,95926.0,0.0783]
[1740397755764,0.156361,95932.0,95926.0,0.0783]
[1740397756622,0.156362,95931.0,95926.0,0.0783]
[1740397756762,0.156361,95932.0,95926.0,0.0783]
[1740397756985,0.001,95933.0,95926.0,0.0783]
[1740397757190,0.156361,95932.0,95926.0,0.0783]
[1740397757835,0.20346939,95934.0,95926.0,0.0783]
[1740397758033,0.15636,95933.0,95926.0,0.0783]